Cogmind - Beta 16.1 @@@ ROGUE MODE // 2026.05.02 @ 22:14:33 Player: SunShine214 Result: Destroyed by G-47 Trooper with Particle Gun Performance ------------- Evolutions (2) 1000 Regions Visited (3) 600 Robots Destroyed (41) 205 Value Destroyed (1193) 1193 Prototype IDs (1) 20 Alien Tech Used (0) 0 Bonus (0) 0 TOTAL SCORE: 3018 Bonus ------- None Cogmind --------- Core Integrity 0/550 Matter 177/300 Energy 100/100 System Corruption 0% Temperature Cool (9) Movement Core (50) Location -8/Materials Parts ------- > --- POWER (1) -------- (None) > --- PROPULSION (3) --- (None) > --- UTILITY (4) ------ Hacking Suite Hacking Suite > --- WEAPON (3) ------- (None) > --- INVENTORY (5) ---- 1B-0RG's Assimilator Peak State ------------ > --- POWER ------------ Light Deuterium Engine > --- PROPULSION ------- Light Treads Light Treads Light Treads Light Treads > --- UTILITY ---------- Large Storage Unit Sensor Array Hacking Suite Hacking Suite Rainbow Chip > --- WEAPON ----------- Subdweller Beam Cannon Makeshift Shrapnel Gun Assault Cannon > --- INVENTORY -------- Light Ion Engine Compact Wheel Large Storage Unit Signal Interpreter Seismic Detector Grenade Launcher Grenade Launcher 1B-0RG's Assimilator Mining Laser Heavy Flail [Rating: 44] Favorites ----------- Power Light Ion Engine Engine Light Ion Engine Propulsion Light Treads Treads Light Treads Wheel Compact Wheel Utility Large Storage Unit Device Seismic Detector Storage Large Storage Unit Processor Rainbow Chip Hackware Hacking Suite Weapon Light Cannon Energy Cannon Subdweller Beam Cannon Ballistic Gun Assault Rifle Ballistic Cannon Light Cannon Launcher Grenade Launcher Special Weapon Mining Laser Build | -11 -10 -10 -8 ------- Run | Yrd Mat Sub Mat Slots Evolved 4 | . . . 4 Power . | . . . . Propulsion 1 | . . . 1 Utility 2 | . . . 2 Weapon 1 | . . . 1 Parts Attached 31 | 7 6 11 7 Power 5 | 1 2 1 1 Engine 5 | 1 2 1 1 Core . | . . . . Reactor . | . . . . Propulsion 8 | 2 . 3 3 Treads 7 | 2 . 3 2 Leg . | . . . . Wheel 1 | . . . 1 Hover . | . . . . Flight . | . . . . Utility 7 | 2 1 2 2 Device 2 | 1 . 1 . Storage 2 | 1 1 . . Processor 1 | . . 1 . Hackware 2 | . . . 2 Protection . | . . . . Artifact . | . . . . Weapon 11 | 2 3 5 1 Energy Gun . | . . . . Energy Cannon 1 | . . 1 . Ballistic Gun 3 | 2 . 1 . Ballistic Cannon 3 | . 2 . 1 Launcher 3 | . . 3 . Special Weapon 1 | . 1 . . Impact Weapon . | . . . . Slashing Weapon . | . . . . Piercing Weapon . | . . . . Special Melee Weapon . | . . . . Unidentified Prototypes 1 | . . 1 . Parts Lost 15 | . . 2 13 Power 2 | . . 1 1 Propulsion 6 | . . . 6 Utility 1 | . . . 1 Weapon 6 | . . 1 5 Highest Loss Streak 9 | . . 2 9 To Critical Strikes . | . . . . Average Backups 7 | . 5 12 8 Power . | . . . . Propulsion 1 | . 1 2 . Utility 2 | . 1 4 2 Weapon 2 | . 2 4 3 Tool/Special . | . . . . Unused Backups 7 | . 1 2 4 Power . | . . . . Propulsion 1 | . 1 . . Utility 2 | . . . 2 Weapon 3 | . . 2 1 Tool/Special 1 | . . . 1 Average Slot Usage (%) 91 | . 100 89 66 Engine 10 | . 14 8 4 Treads 26 | . 28 27 17 Device 12 | . 14 12 5 Storage 12 | . 14 12 5 Processor 1 | . . 2 5 Hackware 2 | . . . 12 Energy Cannon 1 | . . 4 3 Ballistic Gun 12 | . 16 9 2 Ballistic Cannon 7 | . 11 2 2 Launcher 2 | . . 7 1 Peak Build Rating 44 | 7 8 32 44 Average Rating 14 | 5 7 17 35 On Entrance 11 | . 7 8 31 Avg Prop Armor Cover (%) . | . . . . Naked Turns . | . . . . Heaviest Build 42 | 12 30 34 42 Greatest Support 80 | 40 40 60 80 Greatest Overweight (x) 1 | . . . 1 Average Overweight (x) . | . . . . Largest Inventory Capacity 15 | 8 15 15 15 Average Capacity 12 | 6 11 15 13 Most Carried 15 | 1 15 15 14 Average Carried 9 | . 5 14 12 Final Capacity 15 | 8 15 15 5 Final Carried 15 | 1 15 13 5 Class Distribution -------------------- 74% | Mutant 18% | Scavenger-Mutant 4% | Hacker-Mutant Dominant Class ---------------- Mutant | -10/Materials Mutant | -10/Subcaves Scavenger-Mutant | -8/Materials Resources | -11 -10 -10 -8 ----------- Run | Yrd Mat Sub Mat Matter Collected 1155 | 218 442 99 396 Remotely . | . . . . Salvage Created 1257 | 27 484 157 589 Parts 84 | 6 43 10 25 Haulers Intercepted 3 | . 2 . 1 Recyclers Shooed 4 | . 4 . . Parts Field Recycled . | . . . . Retrieved Matter . | . . . . Parts Self-Destructed . | . . . . Prevented . | . . . . Parts Restored . | . . . . Kills | -11 -10 -10 -8 ------- Run | Yrd Mat Sub Mat Combat Hostiles Destroyed 30 | . 12 5 13 Guns 6 | . 5 1 . Cannons 17 | . 7 . 10 AOE 7 | . . 4 3 Classes Destroyed 12 | 1 7 1 3 Worker 3 | . 1 . 2 Tunneler 1 | 1 . . . Hauler 3 | . 2 . 1 Recycler 1 | . 1 . . Operator 1 | . 1 . . Watcher 2 | . 2 . . Swarmer 6 | . 6 . . Grunt 16 | . 6 . 10 Brawler 1 | . . . 1 Sentry 1 | . . . 1 Hunter 1 | . . . 1 Subdweller 5 | . . 5 . Best Kill Streak 6 | 1 4 2 6 Combat Bots Only 4 | . 3 2 4 Max Kills in Single Turn 2 | 1 1 2 2 Gunslinging . | . . . . Exploded 2 | . . 2 1 Melee . | . . . . Uniques/NPCs Destroyed . | . . . . Combat | -11 -10 -10 -8 -------- Run | Yrd Mat Sub Mat Hostile Shots Fired 218 | . 36 16 166 Missed 71 | . 12 2 57 Hits 147 | . 24 14 109 Projectile 147 | . 24 14 109 Critical Strikes 6 | . . 3 3 Damage Taken 2331 | . 227 369 1735 Core 664 | . 35 65 564 Absorbed by Shields . | . . . . Core Remaining (%) 80 | 100 . 60 . Volleys Fired 113 | 3 45 17 48 Largest 3 | 2 2 2 3 Hottest 141 | 40 120 104 141 Shots Fired 204 | 6 90 26 82 Gun 59 | 6 36 7 10 Cannon 124 | . 52 6 66 Launcher 13 | . . 7 6 Special 8 | . 2 6 . Kinetic 156 | 6 88 10 52 Thermal 35 | . 2 9 24 Explosive 13 | . . 7 6 Electromagnetic . | . . . . Robot Hit Streak 10 | 2 10 10 6 Robot Miss Streak 5 | 3 5 3 3 Penetration Max . | . . . . Secondary Targets . | . . . . Shots Hit Robots 108 | 2 52 8 46 Core Hits 71 | 1 23 12 35 Critical Kills . | . . . . Critical Parts Destroyed . | . . . . Critical Strikes 5 | . 2 . 3 Blast 5 | . 2 . 3 Melee Attacks . | . . . . Impact . | . . . . Slashing . | . . . . Piercing . | . . . . Sneak Attacks . | . . . . Combat Hostiles . | . . . . Follow-up Attacks . | . . . . Damage Inflicted 2755 | 16 827 370 1542 Guns 463 | 16 270 53 124 Cannons 1569 | . 529 15 1025 Explosions 666 | . . 302 364 Melee . | . . . . Ramming 57 | . 28 . 29 Kinetic 1637 | 16 799 68 754 Thermal 395 | . . . 395 Explosive 666 | . . 302 364 Electromagnetic . | . . . . Impact . | . . . . Slashing . | . . . . Piercing . | . . . . Highest Corruption . | . . . . Average Corruption . | . . . . Corruption Purged . | . . . . Corruption Blocked . | . . . . Overload Shots . | . . . . Overflow Damage 3 | . 3 . . Projectiles 3 | . 3 . . Explosions . | . . . . Melee . | . . . . Knockbacks 16 | . 10 . 6 Impact . | . . . . Kinetic 15 | . 9 . 6 Secondary 1 | . 1 . . Self-Inflicted Damage 54 | . . 40 14 Shots 2 | . . 2 . Rammed 12 | . 8 . 4 Targets Rammed 12 | . 8 . 4 Kicked . | . . . . Crushed . | . . . . Highest Temperature 405 | . 40 252 405 Average Temperature 134 | . 12 126 156 Received Heat Transfer 1285 | . 60 604 621 Effects 3 | . . . 3 Shutdowns 2 | . . . 2 Energy Bleed 1 | . . . 1 Siege Activations . | . . . . Martial Activations . | . . . . Shielding Activations . | . . . . Robots Disrupted . | . . . . Combat Hostiles . | . . . . Robots Corrupted . | . . . . Combat Hostiles . | . . . . Parts Fried . | . . . . Impact Corruptions . | . . . . Robots Melted . | . . . . Combat Hostiles . | . . . . Parts Melted 1 | . . 1 . Heat Transferred 518 | . . . 518 Parts Sabotaged . | . . . . Parts Stolen . | . . . . Parts Stripped . | . . . . Power Chain Reactions . | . . . . Alert | -11 -10 -10 -8 ------- Run | Yrd Mat Sub Mat Maximum Alert Level 1 | . 1 . . Low Security (%) 84 | 100 78 . 100 Level 1 15 | . 21 . . Level 2 . | . . . . Level 3 . | . . . . Level 4 . | . . . . Level 5 . | . . . . High Security . | . . . . Max Security . | . . . . Peak Influence 281 | 5 281 . 181 Initial . | . . . . Average 67 | . 76 . 51 Influence Increases 928 | 5 420 . 503 Destroy 0b10 Robot/C 500 | . 240 . 260 Destroy 0b10 Robot/NC 55 | 5 35 . 15 Destroy Leader 110 | . 48 . 62 Successful Hack 7 | . 7 . . Disable Machine 60 | . 60 . . Destroy Structure 46 | . . . 46 Lose Combat Pursuer 150 | . 30 . 120 Influence Decreases 747 | 5 375 45 322 Entered New Map 22 | . . 22 . Time Decay 445 | 5 225 23 192 Lost Part 130 | . . . 130 Purge Threat 150 | . 150 . . Squads Dispatched 9 | . 1 . 8 Investigation 4 | . . . 4 Extermination . | . . . . Reinforcement 5 | . 1 . 4 Assault . | . . . . Garrison . | . . . . Intercept . | . . . . Searches Triggered . | . . . . Construction Impeded 1 | . . . 1 Haulers Reinforced . | . . . . Active Scanning Responses . | . . . . Cargo Convoy Interrupts . | . . . . Stealth | -11 -10 -10 -8 --------- Run | Yrd Mat Sub Mat Distress Signals 4 | . 1 . 3 Communications Jammed . | . . . . Distress Signals . | . . . . Times Spotted 65 | . 27 5 33 Peak Tracking Total 14 | . 5 2 14 Tactical Retreats 4 | . 2 . 2 Traps | -11 -10 -10 -8 ------- Run | Yrd Mat Sub Mat Traps Triggered 2 | . 1 . 1 Indirectly . | . . . . Trap Hack Attempts . | . . . . Triggered . | . . . . Disarmed . | . . . . Reprogrammed . | . . . . Reused . | . . . . Traps Extracted . | . . . . Installed . | . . . . Triggered . | . . . . Machines | -11 -10 -10 -8 ---------- Run | Yrd Mat Sub Mat Machines Disabled 6 | . 5 1 . Max in Single Turn 1 | . 1 1 . Machines Repaired . | . . . . Machines Dismantled . | . . . . Machines Sabotaged . | . . . . Overloaded Fab Kills . | . . . . Hacking | -11 -10 -10 -8 --------- Run | Yrd Mat Sub Mat Machines Accessed 8 | . 4 . 4 Terminals 8 | . 4 . 4 Fabricators . | . . . . Repair Stations . | . . . . Recycling Units . | . . . . Scanalyzers . | . . . . Garrison Access . | . . . . Total Hacks 20 | . 9 . 11 Successful 6 | . 5 . 1 Failed 14 | . 4 . 10 Catastrophic 2 | . . . 2 Database Lockouts . | . . . . Manual 7 | . 1 . 6 Terminals 20 | . 9 . 11 Fabricators . | . . . . Repair Stations . | . . . . Recycling Units . | . . . . Scanalyzers . | . . . . Garrison Access . | . . . . Terminal Hacks 6 | . 5 . 1 Robot Analysis 1 | . 1 . . Unreport Threat 1 | . 1 . . Hauler Manifests 1 | . 1 . . Registered Components 2 | . 1 . 1 Zone Layout 1 | . 1 . . Fabricator Hacks . | . . . . Repair Station Hacks . | . . . . Recycling Unit Hacks . | . . . . Scanalyzer . | . . . . Garrison Access Hacks . | . . . . Unauthorized Hacks . | . . . . Terminals . | . . . . Fabricators . | . . . . Repair Stations . | . . . . Recycling Units . | . . . . Scanalyzers . | . . . . Garrison Access . | . . . . Data Cores Recovered . | . . . . Used . | . . . . Hacking Detections 7 | . 3 . 4 Full Trace Events 3 | . . . 3 Feedback Events . | . . . . Feedback Blocked . | . . . . Robot Schematics Acquired . | . . . . Robots Built . | . . . . Authchips . | . . . . Time . | . . . . Total Robot Build Rating . | . . . . Part Schematics Acquired . | . . . . Parts Built . | . . . . Authchips . | . . . . Time . | . . . . Total Part Build Rating . | . . . . Part Studies Acquired . | . . . . Parts Repaired . | . . . . Time . | . . . . Parts Recycled . | . . . . Recycled Matter . | . . . . Retrieved Matter . | . . . . Retrieved Components . | . . . . Parts Scanalyzed . | . . . . Part Schematics Acquired . | . . . . Parts Damaged . | . . . . Bothacking | -11 -10 -10 -8 ------------ Run | Yrd Mat Sub Mat Used RIF Installer . | . . . . Robots Hacked . | . . . . Non-combat . | . . . . Combat . | . . . . Robot Hacks Applied . | . . . . Relay Couplers Released . | . . . . Fabnet Peak Effective % . | . . . . Robots Rewired . | . . . . Allies Hacked . | . . . . Hacks Repelled . | . . . . Allies | -11 -10 -10 -8 -------- Run | Yrd Mat Sub Mat Total Allies . | . . . . Largest Group . | . . . . Highest-Rated Group . | . . . . Highest-Rated Ally . | . . . . Total Orders . | . . . . Ally Attacks . | . . . . Total Damage . | . . . . Kills . | . . . . Allies Corrupted . | . . . . Allies Melted . | . . . . Intel | -11 -10 -10 -8 ------- Run | Yrd Mat Sub Mat Active Infowar (turns) 3625 | 33 2058 944 590 Sensors 1489 | . . 899 590 Seismic 2136 | 33 2058 45 . Robot Analysis Total 1 | . 1 . . Derelict Logs Recovered . | . . . . Drone Launches . | . . . . Drone Recoveries . | . . . . Exploration | -11 -10 -10 -8 ------------- Run | Yrd Mat Sub Mat Turns Passed 3746 | 85 2058 946 657 Spaces Moved 1662 | 45 662 538 417 Core 139 | 5 . . 134 Treads 1472 | 40 662 538 232 Legs . | . . . . Wheels 51 | . . . 51 Hover . | . . . . Flight . | . . . . Fastest Speed 50 | 50 160 160 50 Average Speed 149 | 147 160 160 119 Slowest Speed 160 | 160 160 160 160 Overloaded Moves . | . . . . Propulsion Burnouts . | . . . . Robots Hopped . | . . . . Potential Cave-ins 1 | . . 1 . Cave-ins Triggered . | . . . . Exploration Rate (%) 44 | 3 86 37 51 Regions Visited 3 Branch Regions 1 Pre-discovered Areas . | . . . . Known Exits Taken . | . . . . Unknown Exits Taken 3 | 1 1 1 . Scrap Searched 1 | . . 1 . Spaces Dug . | . . . . Terrain Destroyed 91 | . . 43 48 Melee . | . . . . Projectile 20 | . . 1 19 AOE 71 | . . 42 29 Terrain Rammed . | . . . . Walls Destroyed . | . . . . Machines Disabled . | . . . . Actions | -11 -10 -10 -8 --------- Run | Yrd Mat Sub Mat Total 2692 | 55 1561 582 494 Wait 827 | . 815 . 12 Move 1659 | 44 661 537 417 Hop . | . . . . Pick Up 23 | 1 17 3 2 Fast Attach 13 | 7 1 1 4 Attach 7 | . . 3 4 Detach . | . . . . Swap 23 | . 8 13 2 Drop 15 | . 6 8 1 Fire 113 | 3 45 17 48 Melee . | . . . . Ram 4 | . . . 4 Kick . | . . . . Crush 8 | . 8 . . Escape Stasis . | . . . . Rewire . | . . . . Trap . | . . . . Miscellaneous . | . . . . Route ------- -11/Scrapyard -10/Materials (discovered 5 exits: [*Mat x3] / [*Min] / [*Sub]) -10/Subcaves -8/Materials History --------- Turn | Location | Event 47 | -11/Scrapyard | Discovered new exit (range 16) 86 | -11/Scrapyard | Entered Materials 315 | -10/Materials | Build established: Mutant 975 | -10/Materials | Discovered new exit (range 5) 1085 | -10/Materials | Discovered new exit (range 16) 1341 | -10/Materials | Discovered new exit (range 9) 1546 | -10/Materials | Discovered new exit (range 5) 1895 | -10/Materials | Discovered new exit (range 5) 2144 | -10/Materials | Entered Subcaves 2146 | -10/Subcaves | Ambushed by Subdwellers from Twisted Machinery 2304 | -10/Subcaves | Shifting Twisted Machinery released Mak. Shrapnel Gun 2382 | -10/Subcaves | Shifting Twisted Machinery released Sub. Machine Gun 2623 | -10/Subcaves | Visited 4L-MR0's lab 2644 | -10/Subcaves | Found Prototype Special Melee Weapon 2781 | -10/Subcaves | Found Prototype Processor 2781 | -10/Subcaves | Identified Rainbow Chip 2783 | -10/Subcaves | Attached Rainbow Chip, gained temporary slots: Power, Propulsion, Utility, Weapon 2964 | -10/Subcaves | Discovered new exit (range 11) 3080 | -10/Subcaves | Build established: Scavenger-Mutant 3090 | -10/Subcaves | Entered Materials 3090 | -8/Materials | Evolved 4 slots: Propulsion x1, Utility x2, Weapon x1 3647 | -8/Materials | Lost 9 parts (1p4n4w) 3679 | -8/Materials | Core integrity fell below 50% 3742 | -8/Materials | Core integrity fell below 20% 3747 | -8/Materials | Destroyed by G-47 Trooper with Particle Gun Last Messages --------------- 03680_ Temporary Power slot lost. 03680_ Temporary Utility slot lost. 03680_ Temporary Weapon slot lost. 03684_ Terminal unresponsive. 03686_ Slammed into O-16 Technician. 03686_ O-16 Technician sends out distress signal. 03689_ Slammed into U-05 Engineer. 03689_ ALERT: Construction progress impeded, dispatching reinforcements to local area. 03691_ Slammed into U-05 Engineer. 03699_ K-01 Serf cleans the Fusion Modulator. 03708_ W-25 Informer sends out distress signal. 03710_ Slug penetrates W-25 Informer. 03713_ Penetrated by Slug. 03735_ Terminal disabled. 03738_ Slug penetrates Wall. 03741_ Penetrated by Slug. 03742_ W-25 Informer sends out distress signal. 03746_ Slammed into G-47 Trooper. Map ----- +----------------------------------------------------+ | | | | | | | | | | | | | | | | | | | | | | | | | | | | | ?????????######??????????????????????????????????? | | ?????????# ?????????????????????????????????? | | ?????????# ###############################??? | | ?????????# #??? | | ?????????# #??? | | ?????????# ########## ##???? | | ?????????# ##########! T #????? | | ?????????######## # g" """ #????? | | ????????????????# #! h """ ]/ #????? | | ????????????????# # """ // #????? | | ????????????????# g# g** // #????? | | ????????????????# @ * #????? | | ????????????????# # +????? | | ????????????????# # w #????? | | ????????????????# # #######+#####??? | | ????????????????# # #??# #??? | | ????????????############## #??# #??? | | ????????????+ #??# ! #??? | | ???????????????# #??# #??? | | ???????????????# ][ == #??# [! #??? | | ???????????????# ][ =! #??# !! = #??? | | ################ [[ """ #??# #??? | | """ #??# #??? | | """ #??# #??? | | #??##########??? | | #??????????????? | | #+######+### """ """ """ +??????????????? | | ??? ???# """ """ """ #??????????????? | | #! ????# """ """ """ #??????????????? | | #??????# ??????????????????? | | #??????# ??????????????????? | | #??????# """ """ ?????????????????? | | #??????# """ """ ??????????????????? | | #??????# """ "?? ???????????????????? | | #??????# ? ????????????????????????? | | #??????# ????????????????????????????? | +----------------------------------------------------+ Best States ------------- Heat Dissipation 31 Energy Generation 14 Energy Capacity 250 Matter Stores 300 Matter Capacity 300 Sight Range 16 Robot Scan Range 14 Terrain Scan Density 10 Evasion (%) 50 Recoil Reduction 4 Offensive Hacking 20 Item Schematics ----------------- None Robot Schematics ------------------ None Fabricated ------------ Nothing Repaired ---------- Nothing Studied --------- None Alien Tech Used ----------------- None Achievements -------------- None Challenges ------------ None Game ------ Seed MachineLargeSource Manual? 0 Play Time 00:18:52 Cumulative 166.1 hours Start 2026.05.02 @ 14:43:13 End 2026.05.02 @ 22:14:33 Sessions 1 Manual Loads 0 Difficulty Rogue Special Mode None Game No. 259 Rogue 259 Adventurer 0 Explorer 0 Win Type - Total 1 Types 1/0/0/0/0/0/0/0/0/0 Lore% 58 Gallery% 57 Achievement% 44 Wizard Run 0 Options --------- Layout 1 ASCII 0 Keyboard 1 Movement Arrows Keybinds 0 Fullscreen 1 Font 24/Smallcaps Map View 50x35 Zoom Use 0% Tactical HUD 1 Map Filters NONE Filters NONE Steam 1 RUN: 63f88b05-80da-4221-9685-a86996abcb31